Cogmind - Beta 13 @@@ ROGUE MODE // 2024.04.05 @ 16:53:36 Player: gabr Result: Self-destructed Performance ------------- Evolutions (1) 500 Regions Visited (2) 400 Robots Destroyed (27) 135 Value Destroyed (742) 742 Prototype IDs (3) 60 Alien Tech Used (0) 0 Bonus (0) 0 TOTAL SCORE: 1837 Bonus ------- None Cogmind --------- Core Integrity 170/400 Matter 270/300 Energy 265/265 System Corruption 0% Temperature Cool (0) Movement Walking (120) Location -9/Materials Parts ------- > --- POWER (1) -------- Improved Ion Engine > --- PROPULSION (4) --- Aluminum Leg Aluminum Leg Aluminum Leg Aluminum Leg > --- UTILITY (2) ------ Large Storage Unit Core Shielding > --- WEAPON (2) ------- Advanced Beam Cannon Advanced Beam Cannon > --- INVENTORY (15) --- Light Ion Engine Light Ion Engine Improved Heat Sink Disposable Heat Sink Hardened Light Armor Plating High-powered Tractor Beam Medium Laser Medium Laser Advanced Beam Cannon Advanced Beam Cannon Advanced Beam Cannon Assault Rifle Light Assault Rifle Heavy Assault Rifle Katana Peak State ------------ > --- POWER ------------ Improved Ion Engine > --- PROPULSION ------- Aluminum Leg Aluminum Leg Aluminum Leg Aluminum Leg > --- UTILITY ---------- Large Storage Unit Core Shielding > --- WEAPON ----------- Advanced Beam Cannon Katana > --- INVENTORY -------- Light Ion Engine Light Ion Engine Improved Heat Sink Disposable Heat Sink Hardened Light Armor Plating High-powered Tractor Beam Medium Laser Medium Laser Small Laser Small Laser Small Laser Assault Rifle Light Assault Rifle Heavy Assault Rifle Katana [Rating: 16] Favorites ----------- Power Improved Ion Engine Engine Improved Ion Engine Power Core Light Nuclear Core Propulsion Aluminum Leg Leg Aluminum Leg Wheel Compact Wheel Utility Large Storage Unit Storage Large Storage Unit Processor Transport Network Coupler Protection Hardened Light Armor Plating Weapon Medium Laser Energy Gun Medium Laser Energy Cannon Advanced Beam Cannon Slashing Weapon Katana Build | -11 -10 -9 ------- Run | Yrd Mat Mat Slots Evolved 2 | . . 2 Power . | . . . Propulsion 2 | . . 2 Utility . | . . . Weapon . | . . . Parts Attached 38 | 6 5 27 Power 5 | 1 . 4 Engine 4 | 1 . 3 Core 1 | . . 1 Reactor . | . . . Propulsion 15 | 2 . 13 Treads . | . . . Leg 12 | 2 . 10 Wheel 3 | . . 3 Hover . | . . . Flight . | . . . Utility 8 | 1 3 4 Device . | . . . Storage 2 | 1 . 1 Processor 1 | . 1 . Hackware . | . . . Protection 5 | . 2 3 Artifact . | . . . Weapon 10 | 2 2 6 Energy Gun 7 | 2 2 3 Energy Cannon 2 | . . 2 Ballistic Gun . | . . . Ballistic Cannon . | . . . Launcher . | . . . Special Weapon . | . . . Impact Weapon . | . . . Slashing Weapon 1 | . . 1 Piercing Weapon . | . . . Special Melee Weapon . | . . . Unidentified Prototypes 1 | . . 1 Parts Lost 8 | . . 8 Power 1 | . . 1 Propulsion 6 | . . 6 Utility . | . . . Weapon 1 | . . 1 Highest Loss Streak 3 | . . 3 To Critical Strikes . | . . . Average Slot Usage (%) 90 | . 100 87 Engine 10 | . 14 9 Leg 26 | . 28 26 Wheel 6 | . . 8 Storage 11 | . 14 11 Processor 1 | . 7 . Protection 9 | . 7 10 Energy Gun 18 | . 28 16 Energy Cannon 2 | . . 2 Slashing Weapon 1 | . . 1 Naked Turns . | . . . Heaviest Build 38 | 10 17 38 Greatest Support 40 | 20 20 40 Greatest Overweight (x) 8 | . . 8 Average Overweight (x) . | . . . Largest Inventory Capacity 15 | 8 8 15 Average Capacity 12 | 7 8 14 Most Carried 15 | 6 8 15 Average Carried 10 | 3 6 12 Final Capacity 15 | 8 8 15 Final Carried 15 | 6 7 15 Class Distribution -------------------- 69% | Mutant 30% | Scavenger-Mutant Dominant Class ---------------- Mutant | -10/Materials Mutant | -9/Materials Resources | -11 -10 -9 ----------- Run | Yrd Mat Mat Matter Collected 584 | 260 50 274 Remotely . | . . . Salvage Created 1212 | 71 145 996 Parts 50 | 2 4 44 Haulers Intercepted 4 | . 2 2 Recyclers Shooed . | . . . Parts Field Recycled . | . . . Retrieved Matter . | . . . Parts Self-Destructed . | . . . Prevented . | . . . Kills | -11 -10 -9 ------- Run | Yrd Mat Mat Combat Hostiles Destroyed 19 | . 1 18 Melee 1 | . . 1 Guns 17 | . 1 16 Classes Destroyed 7 | 1 2 4 Worker 2 | . . 2 Hauler 4 | . 2 2 Recycler 2 | 1 . 1 Grunt 13 | . 1 12 Brawler 1 | . . 1 Duelist 2 | . . 2 Sentry 3 | . . 3 Best Kill Streak 3 | 1 1 3 Combat Bots Only 3 | . 1 3 Max Kills in Single Turn 2 | 1 1 2 Gunslinging 1 | . . 1 Exploded . | . . . Melee 1 | . . 1 Uniques/NPCs Destroyed . | . . . Combat | -11 -10 -9 -------- Run | Yrd Mat Mat Hostile Shots Fired 100 | . 3 97 Missed 18 | . 1 17 Damage Taken 1314 | . 22 1292 Core 240 | . 10 230 Absorbed by Shields . | . . . Redirected to Shielding 25 | . . 25 Core Remaining (%) 98 | 100 96 . Volleys Fired 115 | 7 14 94 Largest 2 | 2 2 2 Hottest 136 | 80 80 136 Shots Fired 175 | 14 28 133 Gun 159 | 14 28 117 Cannon 16 | . . 16 Launcher . | . . . Special . | . . . Kinetic . | . . . Thermal 175 | 14 28 133 Explosive . | . . . Electromagnetic . | . . . Robot Hit Streak 14 | 4 4 14 Robot Miss Streak 4 | 2 4 3 Penetration Max . | . . . Secondary Targets 1 | . . 1 Max Gunslinging Chain 1 | . . 1 Shots Hit Robots 122 | 9 14 99 Core Hits 42 | 2 6 34 Critical Kills . | . . . Critical Parts Destroyed . | . . . Critical Strikes 8 | . . 8 Burn 8 | . . 8 Melee Attacks 4 | . . 4 Impact . | . . . Slashing 4 | . . 4 Piercing . | . . . Sneak Attacks 2 | . . 2 Combat Hostiles . | . . . Follow-up Attacks . | . . . Damage Inflicted 1894 | 107 157 1630 Guns 1598 | 107 157 1334 Cannons 142 | . . 142 Explosions . | . . . Melee 154 | . . 154 Ramming . | . . . Kinetic . | . . . Thermal 1740 | 107 157 1476 Explosive . | . . . Electromagnetic . | . . . Impact . | . . . Slashing 154 | . . 154 Piercing . | . . . Highest Corruption . | . . . Average Corruption . | . . . Corruption Purged . | . . . Corruption Blocked . | . . . Overload Shots . | . . . Overflow Damage 4 | . . 4 Projectiles . | . . . Explosions . | . . . Melee 4 | . . 4 Knockbacks . | . . . Impact . | . . . Kinetic . | . . . Secondary . | . . . Self-Inflicted Damage . | . . . Shots . | . . . Rammed . | . . . Targets Rammed . | . . . Kicked . | . . . Crushed . | . . . Highest Temperature 377 | 90 210 377 Average Temperature 87 | 40 66 94 Received Heat Transfer 393 | . 12 381 Effects 3 | . . 3 Energy Bleed 1 | . . 1 Interference 1 | . . 1 Matter Decay 1 | . . 1 Siege Activations . | . . . Robots Corrupted . | . . . Combat Hostiles . | . . . Parts Fried . | . . . Impact Corruptions . | . . . Robots Melted 1 | . . 1 Combat Hostiles 1 | . . 1 Parts Melted 8 | . . 8 Heat Transferred 4744 | 250 350 4144 Parts Sabotaged . | . . . Parts Stolen . | . . . Parts Stripped . | . . . Power Chain Reactions . | . . . Alert | -11 -10 -9 ------- Run | Yrd Mat Mat Peak Influence 275 | 5 78 275 Initial 32 | . 3 32 Average 96 | 2 49 124 Maximum Alert Level 1 | . . 1 Low Security (%) 91 | 100 100 87 Level 1 8 | . . 12 Level 2 . | . . . Level 3 . | . . . Level 4 . | . . . Level 5 . | . . . High Security . | . . . Max Security . | . . . Squads Dispatched 1 | . . 1 Investigation 1 | . . 1 Extermination . | . . . Reinforcement . | . . . Assault . | . . . Garrison . | . . . Intercept . | . . . Searches Triggered . | . . . Construction Impeded . | . . . Haulers Reinforced . | . . . Active Scanning Responses . | . . . Cargo Convoy Interrupts . | . . . Stealth | -11 -10 -9 --------- Run | Yrd Mat Mat Distress Signals 1 | . . 1 Communications Jammed . | . . . Distress Signals . | . . . Times Spotted 27 | . 5 22 Peak Tracking Total 3 | . 3 3 Tactical Retreats . | . . . Traps | -11 -10 -9 ------- Run | Yrd Mat Mat Traps Triggered . | . . . Indirectly . | . . . Trap Hack Attempts . | . . . Triggered . | . . . Disarmed . | . . . Reprogrammed . | . . . Reused . | . . . Traps Extracted . | . . . Installed . | . . . Triggered . | . . . Machines | -11 -10 -9 ---------- Run | Yrd Mat Mat Machines Disabled . | . . . Max in Single Turn . | . . . Machines Repaired . | . . . Machines Dismantled . | . . . Machines Sabotaged . | . . . Overloaded Fab Kills . | . . . Hacking | -11 -10 -9 --------- Run | Yrd Mat Mat Machines Accessed 6 | . 3 3 Terminals 5 | . 3 2 Fabricators . | . . . Repair Stations . | . . . Recycling Units . | . . . Scanalyzers 1 | . . 1 Garrison Access . | . . . Total Hacks 9 | . 3 6 Successful 8 | . 3 5 Failed 1 | . . 1 Catastrophic . | . . . Database Lockouts . | . . . Manual 2 | . 2 . Terminals 5 | . 3 2 Fabricators . | . . . Repair Stations . | . . . Recycling Units . | . . . Scanalyzers 4 | . . 4 Garrison Access . | . . . Terminal Hacks 4 | . 3 1 Prototype ID Bank 1 | . 1 . Alert Level 1 | . 1 . Hauler Manifests 2 | . 1 1 Fabricator Hacks . | . . . Repair Station Hacks . | . . . Recycling Unit Hacks . | . . . Scanalyzer 4 | . . 4 Insert Component 2 | . . 2 Analyze 2 | . . 2 Garrison Access Hacks . | . . . Unauthorized Hacks . | . . . Terminals . | . . . Fabricators . | . . . Repair Stations . | . . . Recycling Units . | . . . Scanalyzers . | . . . Garrison Access . | . . . Data Cores Recovered . | . . . Used . | . . . Hacking Detections 5 | . 2 3 Full Trace Events 1 | . . 1 Feedback Events . | . . . Feedback Blocked . | . . . Robot Schematics Acquired . | . . . Robots Built . | . . . Authchips . | . . . Time . | . . . Total Robot Build Rating . | . . . Part Schematics Acquired 2 | . . 2 Parts Built . | . . . Authchips . | . . . Time . | . . . Total Part Build Rating . | . . . Parts Repaired . | . . . Time . | . . . Parts Recycled . | . . . Recycled Matter . | . . . Retrieved Matter . | . . . Retrieved Components . | . . . Parts Scanalyzed 2 | . . 2 Part Schematics Acquired 2 | . . 2 Parts Damaged . | . . . Bothacking | -11 -10 -9 ------------ Run | Yrd Mat Mat Used RIF Installer . | . . . Robots Hacked . | . . . Non-combat . | . . . Combat . | . . . Robot Hacks Applied . | . . . Relay Couplers Released . | . . . Fabnet Peak Effective % . | . . . Robots Rewired . | . . . Allies Hacked . | . . . Hacks Repelled . | . . . Allies | -11 -10 -9 -------- Run | Yrd Mat Mat Total Allies . | . . . Largest Group . | . . . Highest-Rated Group . | . . . Highest-Rated Ally . | . . . Total Orders . | . . . Ally Attacks . | . . . Total Damage . | . . . Kills . | . . . Allies Corrupted . | . . . Allies Melted . | . . . Intel | -11 -10 -9 ------- Run | Yrd Mat Mat Robot Analysis Total . | . . . Derelict Logs Recovered . | . . . Drone Launches . | . . . Drone Recoveries . | . . . Exploration | -11 -10 -9 ------------- Run | Yrd Mat Mat Turns Passed 1439 | 139 304 996 Spaces Moved 670 | 83 208 379 Core 13 | 2 . 11 Treads . | . . . Legs 650 | 81 208 361 Wheels 7 | . . 7 Hover . | . . . Flight . | . . . Fastest Speed 50 | 50 120 120 Average Speed 152 | 118 120 178 Slowest Speed 450 | 120 120 450 Overloaded Moves . | . . . Propulsion Burnouts . | . . . Robots Hopped . | . . . Cave-ins Triggered . | . . . Exploration Rate (%) 19 | 6 24 28 Regions Visited 2 Branch Regions . Pre-discovered Areas . | . . . Known Exits Taken . | . . . Unknown Exits Taken 2 | 1 1 . Scrap Searched . | . . . Spaces Dug . | . . . Terrain Destroyed . | . . . Melee . | . . . Projectile . | . . . AOE . | . . . Terrain Rammed . | . . . Walls Destroyed . | . . . Machines Disabled . | . . . Actions | -11 -10 -9 --------- Run | Yrd Mat Mat Total 900 | 107 235 558 Wait 35 | 6 . 29 Move 668 | 82 207 379 Hop . | . . . Pick Up 20 | 6 3 11 Fast Attach 25 | 6 4 15 Attach 4 | . . 4 Detach 3 | . 2 1 Swap 9 | . 1 8 Drop 17 | . 4 13 Fire 115 | 7 14 94 Melee 4 | . . 4 Ram . | . . . Kick . | . . . Crush . | . . . Escape Stasis . | . . . Rewire . | . . . Trap . | . . . Miscellaneous . | . . . Route ------- -11/Scrapyard -10/Materials -9/Materials History --------- Turn | Location | Event 5 | -11/Scrapyard | Discovered new exit (range 15) 140 | -11/Scrapyard | Entered Materials 218 | -10/Materials | Discovered new exit (range 7) 325 | -10/Materials | Build established: Mutant 444 | -10/Materials | Entered another Materials area 444 | -9/Materials | Evolved 2 slots: Propulsion x2 900 | -9/Materials | Lost 3 parts (3n) 1143 | -9/Materials | Core integrity fell below 50% 1364 | -9/Materials | Build established: Scavenger-Mutant 1440 | -9/Materials | Self-destructed Last Messages --------------- 01283_ Sneak attack on A-02 Transporter. 01283_ Destroyed Ion Engine. 01284_ K-01 Serf collects debris. 01287_ Dropped Aluminum Leg. 01290_ K-01 Serf collects debris. 01297_ T-07 Excavator is excavating. 01312_ A-02 Transporter destroyed. 01317_ Dropped Beam Rifle. 01317_ Acquired Prototype Energy Cannon. 01317_ Identified Adv. Beam Cannon. 01320_ Dropped Katana. 01321_ Acquired Adv. Beam Cannon. 01323_ Dropped Sml. Laser. 01325_ Acquired Adv. Beam Cannon. 01338_ K-01 Serf cleans the Terminal. 01410_ U-05 Engineer builds a Door. 01429_ R-06 Scavenger collects Transport Network Coupler. 01432_ R-06 Scavenger collects Lgt. Treads. 01434_ R-06 Scavenger collects Beam Rifle. 01438_ R-06 Scavenger collects Adv. Beam Cannon. Map ----- +----------------------------------------------------+ | ?????????????????????????????????????????????????? | | ?????????????????????????????????????????????????? | | ?????????????????????????????????????????????????? | | ?????????????????????????????????????????????????? | | ?????????????????????????????????????????????????? | | ?????????????????????????????????????????????????? | | ?????????????????????????????????????????????????? | | ?????????????????????????????????????????????????? | | ?????????????????????????????????????????????????? | | ?????????????????????????????????????????????????? | | ?????????????????????????????????????????????????? | | ?????????????????????????????????????????????????? | | ?????????????????????????????????????????????????? | | ???????????????????#+#???????????????????????????? | | ???????????????????# #???????????????????????????? | | ????????########???# #???????????????????????????? | | ????????# #???# #???????????????????????????? | | ????????# #???# +??????????????? +??????????? | | ??#######"" #???#[############# #??????????? | | ??# #"T / #####[ [ w #??????????? | | ??# #"" + %tr +??????????? | | ??# + ######### ######??????????????? | | ??# ########???????# ##???????????????????? | | ??# #??????????????# #????????????????????? | | ??### ###????????####### r #????????????????????? | | ????# #?????# + @ k#????????????????????? | | ????# #??????????####### ###########??????????? | | ????# #????????????????# # #??????????? | | ????# #?#############??# # || """ #######????? | | ????# #?# ] | # #??# # || """ # ?????? | | ????# #?# # #??#k # """ + ?????? | | ????# #?# """ #]][ #??# =# [ # ??????? | | ????# #?? """ #]][ #??# %# # #??????? | | ????# #??? """ #][[ #### # # #??????? | | ????# #??? # + a# # #??????? | | ????# #####+##"# #### ######+#### #??????? | | ????# + #??# #????# #?## ##?????? | | ????####### #### #??# #???## ### #?????? | | ??????????# #??######??# #???#[[ # "?? | | ??????????# #??????????# *!#####!%* T + | | ??????????# #??????????# %!!*%[!!%[! % #?????? | | ??????????# #??????????###########%### #?????? | | ??????????# ???????????##########%#?#######?????? | | ??????????+ ???????????# # #?????????????? | | ??????????# ???????????# """ ! #%#????????????#? | | ??????????? ???????????# "R #%###?#####????# | | ??????????? ???????????# """ # #?# #????# | | ??????????? ???????????# % %/ #?# % #????# | | ??????????? ???????????# """ # #?# #????# | | ??????????? ???????????# """ # #?# #????# | +----------------------------------------------------+ Best States ------------- Heat Dissipation 28 Energy Generation 14 Energy Capacity 265 Matter Stores 300 Matter Capacity 300 Sight Range 16 Terrain Scan Density 10 Armor Coverage 150 Core Shielding 20 Evasion (%) 55 Item Schematics ----------------- Lgt. Ion Engine | -9/Materials | Scanalyzed Hrd. Light Armor Plating | -9/Materials | Scanalyzed Robot Schematics ------------------ None Fabricated ------------ Nothing Alien Tech Used ----------------- None Achievements -------------- None Challenges ------------ None Game ------ Seed WardroneKineticPlating Manual? 0 Play Time 00:09:41 Cumulative 48.0 hours Start 2024.04.05 @ 14:06:58 End 2024.04.05 @ 16:53:36 Sessions 3 Manual Loads 0 Difficulty Rogue Special Mode None Game No. 110 Rogue 110 Adventurer 0 Explorer 0 Win Type - Total 0 Types 0/0/0/0/0/0/0/0/0 Lore% 21 Gallery% 35 Achievement% 26 Wizard Run 0 Options --------- Layout 0 ASCII 0 Keyboard 1 Movement Numpad Keybinds 0 Fullscreen 1 Font 24/Terminus Map View 76x50 Zoom Use 0% Tactical HUD 1 Map Filters NONE Filters NONE Steam 1 RUN: ee8f1156-a4a8-409a-ae97-9cecf195ec76